bitfinex-derivatives/quotes_SOLF0:USTF0_20240913
["timestamp","ask_amount","ask_price","bid_price","bid_amount"]
[1726270175093,3.6068,138.54,138.53,11.08]
[1726270175305,3.6068,138.54,138.53,14.75459368]
[1726270183405,3.6068,138.54,138.53,3.67459368]
[1726270183605,3.6068,138.54,138.52,11.08]
[1726270184013,3.6069,138.53,138.52,14.61893194]
[1726270184602,11.08,138.56,138.49,1.3484]
[1726270184909,1.3482,138.57,138.5,11.08]
[1726270184910,11.08,138.55,138.5,11.08]
[1726270185114,3.6076,138.51,138.5,11.08]
[1726270187209,3.6073,138.52,138.5,11.08]
[1726270187407,3.6073,138.52,138.51,3.68396718]
[1726270187608,3.6073,138.52,138.51,11.08]
[1726270187810,3.6073,138.52,138.51,14.66299985]
[1726270190013,3.6071,138.53,138.51,14.66299985]
[1726270190206,3.6071,138.53,138.52,11.08]
[1726270190903,3.6071,138.53,138.52,14.7111941]
[1726270191315,1.3482,138.57,138.52,14.7111941]
[1726270191610,1.3482,138.57,138.54,11.08]
[1726270192400,12.4282,138.57,138.53,3.6557292]
[1726270192600,16.22632222,138.57,138.54,11.08]
[1726270192912,1.3482,138.57,138.54,11.08]
[1726270193812,3.6065,138.55,138.54,11.08]
[1726270195211,1.3482,138.57,138.52,11.08]
[1726270195803,3.6069,138.54,138.52,11.08]
[1726270196015,3.6069,138.54,138.52,14.70542114]
[1726270199713,3.6069,138.53,138.52,14.70542114]
[1726270210815,3.6067,138.54,138.52,14.70542114]
[1726270211010,3.6067,138.54,138.53,11.08]
[1726270212732,3.6065,138.55,138.53,11.08]
[1726270213423,3.6065,138.55,138.54,11.08]
[1726270213928,3.6062,138.56,138.54,11.08]
[1726270214125,3.6062,138.56,138.55,14.6160387]
[1726270214328,3.6062,138.56,138.55,11.08]
[1726270214517,3.6058,138.58,138.55,11.08]
[1726270214716,3.6058,138.58,138.57,11.08]
[1726270218519,3.6052,138.6,138.57,11.08]
[1726270218729,3.6052,138.6,138.58,11.08]
[1726270221024,3.6051,138.6,138.58,11.08]
[1726270222934,3.6054,138.59,138.56,3.57500729]
[1726270223128,3.6054,138.59,138.47,31.04558944]
[1726270223325,3.6054,138.59,138.58,11.08]
[1726270223937,3.6052,138.6,138.58,11.08]
[1726270225831,3.6052,138.6,138.57,3.67568985]
[1726270226027,3.6052,138.6,138.59,11.08]
[1726270232846,3.6052,138.6,138.57,3.61194943]
[1726270233038,3.6052,138.6,138.58,11.08]
[1726270236545,3.6052,138.6,138.59,11.08]
[1726270241239,11.08,138.6,138.52,4.0415]
[1726270241548,11.08,138.59,138.54,11.08]
[1726270241747,3.6058,138.58,138.55,11.08]
[1726270246542,3.6058,138.58,138.56,11.08]
[1726270256358,3.6059,138.57,138.56,11.08]
[1726270258160,3.6058,138.58,138.56,11.08]
[1726270258463,3.6058,138.58,138.57,11.08]
[1726270263758,11.08,138.6,138.53,3.6068]
[1726270263961,11.08,138.6,138.55,11.08]
[1726270264159,3.6061,138.57,138.55,11.08]
[1726270266463,3.6061,138.56,138.55,11.08]
[1726270273064,3.6061,138.56,138.53,3.6069]
[1726270273371,3.6061,138.56,138.55,11.08]
[1726270287384,3.606,138.57,138.55,11.08]
[1726270287589,3.606,138.57,138.56,11.08]
[1726270287981,3.6058,138.58,138.56,11.08]
[1726270288182,3.6058,138.58,138.57,11.08]
[1726270291985,3.6055,138.59,138.57,11.08]
[1726270293487,3.6055,138.59,138.55,3.6064]
[1726270293674,3.6055,138.59,138.58,11.08]
[1726270294889,14.86236064,138.6,138.58,11.08]
[1726270295076,1.447,138.61,138.59,11.08]
[1726270295278,3.6053,138.6,138.58,11.08]
[1726270297678,1.447,138.61,138.52,7.62737865]
[1726270297879,12.527,138.61,138.52,7.62737865]
[1726270298199,3.6057,138.58,138.55,11.08]
[1726270298389,3.6057,138.58,138.56,11.08]
[1726270302586,3.6057,138.58,138.53,3.6068]
[1726270302786,3.6057,138.58,138.56,11.08]
[1726270310910,3.6057,138.58,138.57,11.08]
[1726270311094,1.447,138.61,138.57,11.08]
[1726270311299,1.447,138.61,138.58,11.08]
[1726270312006,3.6053,138.6,138.58,11.08]
[1726270314309,1.447,138.61,138.59,11.08]
[1726270314804,3.6052,138.6,138.59,11.08]
[1726270314999,1.447,138.61,138.59,11.08]
[1726270315000,12.4391,138.64,138.59,11.08]
[1726270315593,3.605,138.61,138.59,11.08]
[1726270316801,3.605,138.61,138.6,11.08]
[1726270320410,3.605,138.61,138.6,10.99173671]
[1726270328420,3.6048,138.62,138.6,10.99173671]
[1726270328619,3.6048,138.62,138.61,11.08]
[1726270332021,3.6048,138.62,138.6,11.08]
[1726270334323,3.6048,138.62,138.59,3.55326192]
[1726270334324,3.6049,138.61,138.59,14.63326192]
[1726270335122,3.6049,138.61,138.59,3.55326192]
[1726270335325,3.6049,138.61,138.59,11.08]
[1726270335521,3.6049,138.61,138.59,14.61404114]
[1726270336726,3.6049,138.61,138.6,11.08]
[1726270339725,3.6045,138.63,138.6,11.08]
[1726270339934,1.4278,138.67,138.63,11.08]
[1726270340118,1.4278,138.67,138.64,11.08]
[1726270340319,3.6038,138.65,138.64,11.08]
[1726270346622,3.6038,138.65,138.62,3.55578657]
[1726270346825,3.6042,138.64,138.63,11.08]
[1726270347931,11.08,138.64,138.58,1.389]
[1726270348131,11.08,138.64,138.6,11.08]
[1726270349819,3.6047,138.62,138.6,11.08]
[1726270350623,3.6047,138.62,138.61,11.08]
[1726270350821,3.6045,138.63,138.61,11.08]
[1726270351029,3.6045,138.63,138.62,11.08]
[1726270354141,11.08,138.66,138.62,11.08]
[1726270355037,3.6043,138.63,138.62,11.08]
[1726270356336,3.6046,138.62,138.61,11.08]
[1726270366140,11.08,138.65,138.6,3.62765516]
[1726270366339,11.08,138.63,138.55,3.6063]
[1726270366645,11.08,138.63,138.58,11.08]
[1726270366847,11.08,138.61,138.58,11.08]
[1726270367540,11.08,138.62,138.58,11.08]
[1726270367850,3.6054,138.59,138.58,11.08]
[1726270376954,3.6052,138.6,138.58,11.08]
[1726270377154,3.6052,138.6,138.59,11.08]
[1726270380256,11.08,138.64,138.57,3.55805899]
[1726270380455,11.08,138.64,138.58,11.08]
[1726270380853,3.6054,138.59,138.58,11.08]
[1726270384652,3.606,138.57,138.53,4.151]
[1726270384956,11.08,138.61,138.56,11.08]
[1726270385649,3.6059,138.57,138.56,11.08]
[1726270387858,2.7264,138.63,138.56,11.08]
[1726270387859,2.7264,138.63,138.56,14.6861]
[1726270388052,13.8064,138.63,138.58,11.08]
[1726270390258,3.6053,138.6,138.58,11.08]
[1726270391759,3.6054,138.59,138.57,11.08]
[1726270393061,3.6056,138.58,138.57,11.08]
[1726270398968,11.08,138.61,138.54,3.6066]
[1726270399267,11.08,138.61,138.55,11.08]
[1726270399468,3.606,138.57,138.55,11.08]
[1726270400468,3.606,138.57,138.55,14.6864]
[1726270401771,3.6058,138.58,138.56,11.08]
[1726270409058,3.6059,138.57,138.56,11.08]
[1726270409267,11.08,138.59,138.55,11.08]
[1726270409573,3.6064,138.56,138.54,11.08]
[1726270410268,2.7264,138.63,138.54,11.08]
[1726270410269,3.6064,138.55,138.54,11.08]
[1726270410775,3.6065,138.55,138.52,11.08]
[1726270411168,11.08,138.57,138.52,14.71194906]
[1726270411561,11.08,138.57,138.53,11.08]
[1726270412072,3.6065,138.55,138.53,11.08]
[1726270412877,3.6065,138.55,138.54,11.08]
[1726270413575,3.6062,138.56,138.54,11.08]
[1726270414879,3.6061,138.57,138.54,14.6865]
[1726270415174,3.6061,138.57,138.55,11.08]
[1726270424085,3.6061,138.57,138.54,3.6065]
[1726270424279,11.08,138.59,138.53,14.6869]
[1726270424280,3.6062,138.56,138.53,14.6869]
[1726270425085,11.08,138.59,138.53,14.6869]
[1726270425086,3.6064,138.55,138.53,14.6869]
[1726270425387,3.6064,138.55,138.53,3.6069]
[1726270425885,3.6063,138.56,138.53,3.6069]
[1726270429096,3.6063,138.56,138.53,14.6869]
[1726270431800,3.6061,138.57,138.54,3.6065]
[1726270432196,11.08,138.59,138.54,3.6065]
[1726270432597,11.08,138.59,138.53,14.6868]
[1726270433396,3.606,138.57,138.54,3.6066]
[1726270439603,3.606,138.57,138.53,14.6868]
[1726270440009,3.6062,138.56,138.53,14.6868]
[1726270442005,3.6062,138.56,138.54,11.08]
[1726270443798,3.606,138.57,138.55,11.08]
[1726270450502,3.606,138.57,138.54,11.08]
[1726270454216,2.7264,138.63,138.56,11.08]
[1726270454411,11.08,138.62,138.58,11.08]
[1726270455013,3.605,138.61,138.58,11.08]
[1726270455214,3.605,138.61,138.59,14.73773184]
[1726270455423,3.605,138.61,138.59,11.08]
[1726270455918,3.605,138.61,138.59,14.76227695]
[1726270456418,214.26794019,138.66,138.6,11.08]
[1726270456623,1.3134,138.67,138.61,11.08]
[1726270457118,11.08,138.66,138.61,14.61693341]
[1726270457918,3.6042,138.64,138.61,14.61693341]
[1726270460415,3.6042,138.64,138.63,11.08]
[1726270461018,3.6042,138.64,138.62,11.08]
[1726270464025,3.6043,138.63,138.62,11.08]
[1726270469825,12.3934,138.67,138.62,11.08]
[1726270469826,3.6042,138.64,138.62,11.08]
[1726270470021,3.6042,138.64,138.63,11.08]
[1726270485049,3.6039,138.65,138.63,11.08]
[1726270485237,3.6039,138.65,138.64,11.08]
[1726270503680,1.0871,138.72,138.64,11.08]
[1726270503883,1.3585,138.71,138.68,11.08]
[1726270504779,3.603,138.69,138.68,11.08]
[1726270508976,3.6021,138.72,138.68,11.08]
[1726270509181,3.6021,138.72,138.71,11.08]
[1726270512581,3.6019,138.73,138.71,11.08]
[1726270513191,3.6015,138.74,138.72,11.08]
[1726270513584,3.6013,138.75,138.73,11.08]
[1726270513777,3.6013,138.75,138.74,11.08]
[1726270516691,13.8051,138.8,138.74,11.08]
[1726270517990,3.6011,138.76,138.74,11.08]
[1726270520482,3.6011,138.76,138.75,11.08]
[1726270526705,3.6013,138.75,138.71,7.23552835]
[1726270526991,11.08,138.77,138.69,4.1829]
[1726270527193,11.08,138.76,138.69,4.91026189]
[1726270527397,3.6022,138.72,138.71,11.08]
[1726270529105,11.08,138.73,138.65,2.7063]
[1726270529307,11.08,138.73,138.68,11.08]
[1726270530600,3.603,138.69,138.68,11.08]
[1726270531011,11.08,138.72,138.65,2.7063]
[1726270531202,11.08,138.73,138.67,11.08]
[1726270531406,11.08,138.73,138.68,11.08]
[1726270531607,3.6027,138.7,138.68,11.08]
[1726270532813,3.6028,138.69,138.65,6.3101]
[1726270533106,3.6028,138.69,138.68,11.08]
[1726270534412,3.6032,138.68,138.65,2.7063]
[1726270534594,3.6032,138.68,138.67,11.08]
[1726270534901,11.08,138.72,138.67,11.08]
[1726270535298,11.08,138.72,138.68,11.08]
[1726270536102,3.6027,138.7,138.68,11.08]
[1726270537501,1.3397,138.74,138.69,11.08]
[1726270537703,1.3846,138.75,138.72,11.08]
[1726270538502,14.61546343,138.78,138.72,11.08]
[1726270538906,11.08,138.77,138.72,11.08]
[1726270539103,2.53,138.82,138.72,11.08]
[1726270539301,11.08,138.78,138.74,11.08]
[1726270541815,3.6012,138.75,138.74,11.08]
[1726270542504,11.08,138.81,138.74,11.08]
[1726270542709,1.0648995,138.8,138.76,11.08]
[1726270542909,3.6007,138.78,138.76,11.08]
[1726270543311,11.08,138.81,138.76,11.08]
[1726270543513,1.06490828,138.8,138.76,11.08]
[1726270544107,11.08,138.81,138.76,11.08]
[1726270544411,1.06502509,138.8,138.76,11.08]
[1726270544814,3.6007,138.77,138.76,11.08]
[1726270549712,11.08,138.77,138.71,4.2411]
[1726270550018,11.08,138.77,138.72,11.08]
[1726270550208,3.6016,138.74,138.72,11.08]
[1726270551020,3.6013,138.75,138.72,11.08]
[1726270551317,3.6013,138.75,138.73,11.08]
[1726270553618,11.08,138.76,138.71,2.886]
[1726270553820,11.08,138.76,138.71,13.966]
[1726270554211,3.6017,138.73,138.71,13.966]
[1726270554411,3.6017,138.73,138.72,11.08]
[1726270559414,11.08,138.76,138.69,1.3369]
[1726270559620,11.08,138.76,138.71,11.08]
[1726270559919,3.602,138.72,138.71,11.08]
[1726270561321,11.08,138.74,138.69,11.08]
[1726270562523,11.08,138.75,138.71,11.08]
[1726270563422,3.6019,138.73,138.71,11.08]
[1726270563624,1.3528,138.77,138.72,11.08]
[1726270563821,12.4328,138.77,138.72,11.08]
[1726270564211,3.6017,138.73,138.72,11.08]
[1726270565525,3.6016,138.74,138.72,11.08]
[1726270566428,3.6013,138.75,138.72,11.08]
[1726270566625,11.08,138.78,138.73,11.08]
[1726270566925,11.08,138.78,138.7,2.7789]
[1726270567121,3.6014,138.75,138.73,11.08]
[1726270568824,11.08,138.78,138.73,11.08]
[1726270569317,1.3305,138.8,138.73,11.08]
[1726270569522,11.08,138.78,138.73,11.08]
[1726270570023,3.6014,138.75,138.73,11.08]
[1726270571226,3.6011,138.76,138.73,11.08]
[1726270575030,3.6008,138.77,138.75,11.08]
[1726270576035,12.4105,138.8,138.7,4.1549]
[1726270576036,3.6013,138.75,138.7,4.1549]
[1726270576234,11.08,138.78,138.73,11.08]
[1726270576822,1.3305,138.8,138.75,11.08]
[1726270577022,12.4105,138.8,138.75,11.08]
[1726270577925,3.6009,138.77,138.75,11.08]
[1726270579730,1.3305,138.8,138.75,11.08]
[1726270579927,3.6005,138.78,138.75,11.08]
[1726270580637,3.6005,138.78,138.76,11.08]
[1726270581933,3.6002,138.79,138.76,11.08]
[1726270582133,11.08,138.81,138.76,11.08]
[1726270582930,11.08,138.82,138.76,11.08]
[1726270583242,11.08,138.79,138.7,4.1549]
[1726270583435,1.3782,138.84,138.74,11.08]
[1726270583630,11.08,138.79,138.74,11.08]
[1726270583831,1.3782,138.84,138.78,11.08]
[1726270584035,12.14555847,138.83,138.79,11.08]
[1726270584336,11.08,138.81,138.75,11.08]
[1726270584842,3.6008,138.77,138.75,11.08]
[1726270586427,3.6008,138.77,138.74,11.08]
[1726270587942,3.601,138.76,138.74,11.08]
[1726270588133,3.601,138.76,138.75,11.08]
[1726270588441,11.08,138.8,138.75,11.08]
[1726270588739,3.6009,138.77,138.75,11.08]
[1726270594350,3.601,138.76,138.75,11.08]
[1726270603346,11.08,138.82,138.75,11.08]
[1726270604149,3.6006,138.78,138.75,11.08]
[1726270604354,11.08,138.82,138.75,11.08]
[1726270604552,11.08,138.8,138.75,11.08]
[1726270604753,3.6008,138.77,138.75,11.08]
[1726270608046,3.601,138.76,138.73,3.6016]
[1726270608351,3.601,138.76,138.75,11.08]
[1726270611557,3.601,138.76,138.73,3.6016]
[1726270611762,3.601,138.76,138.75,11.08]
[1726270613460,3.6008,138.77,138.75,11.08]
[1726270613656,3.6008,138.77,138.76,11.08]
[1726270614268,3.6006,138.78,138.76,14.68798302]
[1726270618862,3.6006,138.78,138.76,11.08]
[1726270620264,3.6007,138.77,138.75,11.08]
[1726270620661,11.08,138.77,138.7,4.1549]
[1726270620974,3.6013,138.75,138.72,11.08]
[1726270621268,11.08,138.79,138.74,11.08]
[1726270621469,1.3782,138.84,138.76,11.08]
[1726270621666,12.14427952,138.83,138.79,11.08]
[1726270621866,3.6002,138.79,138.77,11.08]
[1726270622571,3.6004,138.78,138.77,11.08]
[1726270622772,11.08,138.81,138.76,11.08]
[1726270623070,11.08,138.81,138.75,11.08]
[1726270623672,11.08,138.8,138.75,11.08]
[1726270623868,11.08,138.8,138.74,11.08]
[1726270624373,3.6012,138.76,138.74,11.08]
[1726270627464,11.08,138.8,138.74,11.08]
[1726270628075,3.601,138.76,138.74,11.08]
[1726270629778,1.3782,138.84,138.74,11.08]
[1726270629779,11.08,138.78,138.74,11.08]
[1726270630175,3.6011,138.76,138.74,11.08]
[1726270633278,3.6012,138.75,138.74,11.08]
[1726270635787,3.601,138.76,138.74,11.08]
[1726270635990,11.08,138.79,138.74,11.08]
[1726270636785,3.6009,138.77,138.74,11.08]
[1726270637092,1.3782,138.84,138.76,11.08]
[1726270637284,12.4582,138.84,138.8,11.08]
[1726270637481,3.5998,138.81,138.79,11.08]
[1726270641489,3.5998,138.81,138.8,11.08]
[1726270643587,1.3782,138.84,138.8,11.08]
[1726270644998,3.5997,138.81,138.8,11.08]
[1726270646698,1.3782,138.84,138.8,11.08]
[1726270646898,1.3782,138.84,138.81,11.08]
[1726270647102,1.3782,138.84,138.8,11.08]
[1726270647303,3.5998,138.81,138.8,11.08]
[1726270647494,11.08,138.82,138.77,11.08]
[1726270648001,3.6003,138.79,138.77,11.08]
[1726270649891,3.6001,138.8,138.78,11.08]
[1726270650792,3.6002,138.79,138.78,11.08]
[1726270651803,3.6006,138.78,138.75,3.6012]
[1726270652003,3.6006,138.78,138.77,11.08]
[1726270664412,11.08,138.82,138.76,3.68984848]
[1726270664618,11.08,138.79,138.71,4.91096405]
[1726270664919,11.08,138.79,138.74,11.08]
[1726270665113,3.6014,138.75,138.74,11.08]
[1726270665716,3.6017,138.74,138.71,3.6022]
[1726270666015,11.08,138.77,138.73,11.08]
[1726270666716,3.6015,138.75,138.73,11.08]
[1726270668217,11.08,138.77,138.73,11.08]
[1726270668218,3.6015,138.74,138.73,11.08]
[1726270674227,3.6015,138.74,138.72,3.602]
[1726270674429,11.08,138.75,138.71,11.08]
[1726270675021,3.6019,138.73,138.7,7.7573]
[1726270675321,3.6019,138.73,138.72,11.08]
[1726270676025,3.6017,138.74,138.72,11.08]
[1726270676425,11.08,138.76,138.72,11.08]
[1726270676931,3.6017,138.73,138.72,11.08]
[1726270682622,11.08,138.76,138.72,11.08]
[1726270682623,3.6016,138.74,138.72,11.08]
[1726270688536,3.6016,138.74,138.72,14.6819]
[1726270688933,11.08,138.76,138.72,11.08]
[1726270689533,3.6017,138.73,138.71,14.6821]
[1726270689730,11.08,138.74,138.69,153.12041528]
[1726270689941,11.08,138.74,138.7,14.6824]
[1726270690128,3.6022,138.71,138.69,164.20041528]
[1726270690435,11.08,138.74,138.69,167.80291528]
[1726270690741,3.602,138.72,138.7,11.08]
[1726270690930,11.08,138.74,138.7,11.08]
[1726270691932,3.6019,138.73,138.7,14.6823]
[1726270693033,3.602,138.72,138.7,14.6823]
[1726270693238,11.08,138.74,138.7,14.6823]
[1726270694935,3.602,138.73,138.7,14.6823]
[1726270696330,3.602,138.72,138.7,14.6823]
[1726270697337,3.602,138.72,138.69,7.14512066]
[1726270697534,3.602,138.72,138.69,14.6826]
[1726270698030,3.602,138.72,138.69,3.6026]
[1726270698232,3.602,138.72,138.69,14.6826]
[1726270698432,3.602,138.72,138.69,18.26784455]
[1726270700325,3.6023,138.71,138.69,18.26784455]
[1726270702827,11.08,138.74,138.69,18.26784455]
[1726270702828,3.6021,138.72,138.69,18.26784455]
[1726270703440,3.6023,138.71,138.69,7.18784455]
[1726270703737,3.6023,138.71,138.69,18.26784455]
[1726270704529,3.6021,138.72,138.69,18.26784455]
[1726270707036,3.6019,138.73,138.7,3.6024]
[1726270708944,3.602,138.72,138.7,3.6024]
[1726270710240,3.602,138.72,138.69,7.18794455]
[1726270710445,3.6023,138.71,138.69,18.26794455]
[1726270710739,11.08,138.73,138.64,149.62654066]
[1726270710945,3.6027,138.7,138.64,149.62654066]
[1726270711148,3.6027,138.7,138.67,11.08]
[1726270711340,3.6027,138.7,138.68,3.63919398]
[1726270713440,3.6027,138.7,138.67,14.6831]
[1726270713843,3.6027,138.7,138.68,3.51477434]
[1726270716943,3.6024,138.71,138.68,18.19777434]
[1726270719349,3.6026,138.7,138.68,18.19777434]
[1726270728053,3.6028,138.69,138.68,3.51477434]
[1726270728250,3.6028,138.69,138.68,14.59477434]
[1726270728452,11.08,138.72,138.68,14.59477434]
[1726270729248,3.6027,138.7,138.68,14.59477434]
[1726270731344,3.6027,138.7,138.68,11.08]
[1726270736556,1.4087,138.77,138.68,11.08]
[1726270736757,11.08,138.73,138.68,11.08]
[1726270737654,3.6025,138.7,138.68,11.08]
[1726270740361,1.4087,138.77,138.69,11.08]
[1726270740557,11.08,138.74,138.69,11.08]
[1726270740757,11.08,138.72,138.68,3.6376509]
[1726270740957,11.08,138.72,138.67,11.08]
[1726270741263,3.6027,138.7,138.68,3.6531456]
[1726270741562,3.6027,138.7,138.67,14.6831]
[1726270742266,3.6023,138.71,138.68,18.22468907]
[1726270742563,3.6023,138.71,138.68,14.683]
[1726270743155,3.6023,138.71,138.68,18.29424702]
[1726270756068,3.6025,138.7,138.68,18.29424702]
[1726270757073,11.08,138.72,138.67,3.6033]
[1726270757272,11.08,138.72,138.67,14.6833]
[1726270757568,11.08,138.71,138.67,11.08]
[1726270758273,11.08,138.71,138.66,153.21543309]
[1726270758865,3.603,138.69,138.66,153.21543309]
[1726270761977,3.6031,138.68,138.66,153.21543309]
[1726270762170,3.6031,138.68,138.66,164.29543309]
[1726270762566,3.6031,138.68,138.66,160.69193309]
[1726270763178,3.6031,138.68,138.66,149.61193309]
[1726270765790,3.6031,138.68,138.66,153.21543309]
[1726270767288,3.6031,138.68,138.66,149.61193309]
[1726270768292,3.6031,138.68,138.65,12.4009]
[1726270768989,3.6033,138.67,138.65,16.0045]
[1726270769490,3.6031,138.68,138.66,3.6035]
[1726270771784,14.6831,138.68,138.65,4.9246]
[1726270771983,3.6031,138.68,138.65,4.9246]
[1726270772188,14.6831,138.68,138.65,4.9246]
[1726270772588,3.6033,138.67,138.65,3.6037]
[1726270772784,11.08,138.67,138.64,3.6039]
[1726270773083,10.76378327,138.74,138.64,3.6039]
[1726270773084,11.08,138.66,138.64,3.6039]
[1726270773287,14.6837,138.66,138.64,3.6039]
[1726270774900,3.6037,138.66,138.64,3.6039]
[1726270775790,14.6837,138.66,138.64,3.6039]
[1726270776985,3.6037,138.66,138.64,3.6039]
[1726270777186,14.6837,138.66,138.64,3.6039]
[1726270777385,3.6037,138.66,138.64,3.6039]
[1726270783295,3.8068,138.73,138.62,11.08]
[1726270783296,3.6041,138.64,138.62,3.6045]
[1726270783693,3.6039,138.65,138.62,3.6045]
[1726270784491,3.6039,138.65,138.63,3.6043]
[1726270786898,3.6039,138.65,138.62,3.6045]
[1726270792001,3.8068,138.73,138.62,11.08]
[1726270792203,2.7168,138.73,138.63,11.08]
[1726270792404,11.08,138.71,138.67,11.08]
[1726270792609,11.08,138.73,138.69,14.6827]
[1726270792912,11.08,138.73,138.69,18.26002241]
[1726270793296,3.6021,138.72,138.69,18.26002241]
[1726270793501,11.08,138.73,138.69,14.65732241]
[1726270794209,11.08,138.72,138.69,3.57732241]
[1726270794906,3.6023,138.71,138.69,3.57732241]
[1726270796309,3.6023,138.71,138.68,14.6829]
[1726270796702,3.6023,138.71,138.68,18.26711846]
[1726270799021,3.6023,138.71,138.69,11.08]
[1726270800420,3.6025,138.7,138.69,11.08]
[1726270800828,3.6025,138.7,138.68,3.58421846]
[1726270801021,11.08,138.7,138.64,1.4363]
[1726270801222,11.08,138.7,138.65,11.08]
[1726270801431,1.3792,138.77,138.67,11.08]
[1726270801635,1.3792,138.77,138.69,11.08]
[1726270802119,3.6023,138.71,138.69,11.08]
[1726270804734,3.6023,138.71,138.68,18.35901226]
[1726270805030,11.08,138.7,138.65,11.08]
[1726270805529,3.603,138.68,138.65,14.6837]
[1726270806327,3.6034,138.67,138.64,3.604]
[1726270807533,3.6036,138.66,138.63,3.6043]
[1726270808229,3.6039,138.65,138.62,16.1107]
[1726270808429,3.6039,138.65,138.62,5.0307]
[1726270809528,1.3172,138.72,138.62,1.4262]
[1726270809731,1.0912,138.77,138.62,1.4262]
[1726270809937,1.3172,138.76,138.62,6.33519783]
[1726270810126,3.6024,138.71,138.63,4.90899783]
[1726270810328,11.08,138.72,138.67,11.08]
[1726270810630,1.3172,138.76,138.67,11.08]
[1726270810827,11.08,138.69,138.64,1.3385]
[1726270811027,11.08,138.69,138.64,12.4185]
[1726270811424,14.683,138.69,138.64,16.0225]
[1726270812531,14.6831,138.68,138.64,3.604]
[1726270813032,1.3172,138.76,138.62,16.19139809]
[1726270813033,14.6835,138.67,138.62,16.19139809]
[1726270813433,3.6035,138.67,138.62,16.19139809]
[1726270813730,11.08,138.66,138.62,19.79579809]
[1726270813937,3.6036,138.66,138.62,8.71579809]
[1726270814133,14.6836,138.66,138.62,8.71579809]
[1726270814439,11.08,138.64,138.61,1.3867]
[1726270815031,11.08,138.64,138.61,8.62607501]
[1726270816532,14.6841,138.64,138.6,3.6051]
[1726270816936,14.6841,138.64,138.6,7.1274099]
[1726270817734,3.6041,138.64,138.6,18.2074099]
[1726270820839,3.6048,138.62,138.58,14.6855]
[1726270821245,14.6848,138.62,138.58,14.6855]
[1726270821437,14.6848,138.62,138.58,18.31571594]
[1726270821638,3.6049,138.61,138.58,11.08]
[1726270822039,3.6049,138.61,138.57,7.1877044]
[1726270822547,3.6049,138.61,138.58,3.6056]
[1726270822737,14.6849,138.61,138.58,3.6056]
[1726270823445,3.6049,138.61,138.58,3.6056]
[1726270823746,14.6849,138.61,138.58,3.6056]
[1726270824348,3.6051,138.6,138.57,7.1877044]
[1726270826743,3.606,138.57,138.54,3.6065]
[1726270827139,3.606,138.57,138.52,11.08]
[1726270827344,14.686,138.57,138.53,11.08]
[1726270827740,3.6062,138.56,138.53,11.08]